fUSD/lending_fUSD_20250628
["ID","MTS","AMOUNT","RATE_DAILY","PERIOD"]
[368381074,1751153449551,-500.0,0.00029652,2]
[368381075,1751153449560,-500.0,0.00029652,2]
[368381076,1751153449570,-500.0,0.00029652,2]
[368381077,1751153449579,-500.0,0.00029652,2]
[368381078,1751153449588,-500.0,0.00029652,2]
[368381079,1751153449597,-500.0,0.00029652,2]
[368381080,1751153449607,-500.0,0.00029652,2]
[368381081,1751153449616,-500.0,0.00029652,2]
[368381082,1751153449626,-500.0,0.00029652,2]
[368381083,1751153449635,-500.0,0.00029652,2]
[368381084,1751153449644,-500.0,0.00029652,2]
[368381085,1751153449654,-500.0,0.00029652,2]
[368381086,1751153449664,-500.0,0.00029652,2]
[368381087,1751153449674,-500.0,0.00029652,2]
[368381088,1751153449683,-500.0,0.00029652,2]
[368381089,1751153449693,-500.0,0.00029652,2]
[368381090,1751153449703,-500.0,0.00029652,2]
[368381091,1751153449712,-500.0,0.00029652,2]
[368381092,1751153449721,-500.0,0.00029652,2]
[368381093,1751153449731,-500.0,0.00029652,2]
[368381094,1751153449740,-500.0,0.00029652,2]
[368381095,1751153449750,-500.0,0.00029652,2]
[368381096,1751153449759,-500.0,0.00029652,2]
[368381097,1751153449768,-500.0,0.00029652,2]
[368381098,1751153449778,-500.0,0.00029652,2]
[368381099,1751153449787,-500.0,0.00029652,2]
[368381100,1751153449797,-500.0,0.00029652,2]
[368381101,1751153449806,-500.0,0.00029652,2]
[368381102,1751153449815,-500.0,0.00029652,2]
[368381103,1751153449825,-500.0,0.00029652,2]
[368381104,1751153449835,-695.0,0.00029652,2]
[368381105,1751153449845,-500.0,0.00029652,2]
[368381106,1751153449854,-500.0,0.00029652,2]
[368381107,1751153449864,-500.0,0.00029652,2]
[368381108,1751153449873,-500.0,0.00029652,2]
[368381109,1751153449883,-500.0,0.00029652,2]
[368381110,1751153449892,-500.0,0.00029652,2]
[368381111,1751153449901,-500.0,0.00029652,2]
[368381112,1751153449910,-500.0,0.00029652,2]
[368381113,1751153449919,-500.0,0.00029652,2]
[368381114,1751153449929,-500.0,0.00029652,2]
[368381115,1751153449938,-500.0,0.00029652,2]
[368381116,1751153449947,-500.0,0.00029652,2]
[368381117,1751153449956,-500.0,0.00029652,2]
[368381118,1751153449965,-500.0,0.00029652,2]
[368381119,1751153449974,-500.0,0.00029652,2]
[368381120,1751153449984,-500.0,0.00029652,2]
[368381121,1751153449993,-500.0,0.00029652,2]
[368381122,1751153450002,-500.0,0.00029652,2]
[368381123,1751153450011,-500.0,0.00029652,2]
[368381124,1751153450020,-500.0,0.00029652,2]
[368381125,1751153450029,-500.0,0.00029652,2]
[368381126,1751153450039,-500.0,0.00029652,2]
[368381127,1751153450048,-500.0,0.00029652,2]
[368381128,1751153450057,-610.0,0.00029652,2]
[368381129,1751153450066,-500.0,0.00029652,2]
[368381130,1751153450075,-500.0,0.00029652,2]
[368381131,1751153450084,-500.0,0.00029652,2]
[368381132,1751153450093,-500.0,0.00029652,2]
[368381133,1751153450102,-500.0,0.00029652,2]
[368381134,1751153450113,-500.0,0.00029652,2]
[368381135,1751153450122,-500.0,0.00029652,2]
[368381136,1751153450133,-500.0,0.00029652,2]
[368381137,1751153450144,-500.0,0.00029652,2]
[368381138,1751153450154,-500.0,0.00029652,2]
[368381139,1751153450164,-500.0,0.00029652,2]
[368381140,1751153450175,-500.0,0.00029652,2]
[368381141,1751153450184,-500.0,0.00029652,2]
[368381142,1751153450194,-500.0,0.00029652,2]
[368381143,1751153450208,-500.0,0.00029652,2]
[368381144,1751153450217,-500.0,0.00029652,2]
[368381145,1751153450226,-500.0,0.00029652,2]
[368381146,1751153450235,-500.0,0.00029652,2]
[368381147,1751153450244,-500.0,0.00029652,2]
[368381148,1751153450253,-500.0,0.00029652,2]
[368381149,1751153450262,-500.0,0.00029652,2]
[368381150,1751153450272,-500.0,0.00029652,2]
[368381151,1751153450281,-500.0,0.00029652,2]
[368381152,1751153450290,-500.0,0.00029652,2]
[368381153,1751153450299,-500.0,0.00029652,2]
[368381154,1751153450308,-500.0,0.00029652,2]
[368381155,1751153450317,-500.0,0.00029652,2]
[368381156,1751153450326,-500.0,0.00029652,2]
[368381157,1751153450335,-500.0,0.00029652,2]
[368381158,1751153450345,-500.0,0.00029652,2]
[368381159,1751153450355,-500.0,0.00029652,2]
[368381160,1751153450364,-500.0,0.00029652,2]
[368381161,1751153450374,-500.0,0.00029652,2]
[368381162,1751153450384,-500.0,0.00029652,2]
[368381163,1751153450393,-500.0,0.00029652,2]
[368381164,1751153450403,-500.0,0.00029652,2]
[368381165,1751153450412,-500.0,0.00029652,2]
[368381166,1751153450421,-500.0,0.00029652,2]
[368381167,1751153450430,-500.0,0.00029652,2]
[368381168,1751153450440,-500.0,0.00029652,2]
[368381169,1751153450449,-500.0,0.00029652,2]
[368381170,1751153450458,-500.0,0.00029652,2]
[368381171,1751153450467,-500.0,0.00029652,2]
[368381172,1751153450477,-500.0,0.00029652,2]
[368381173,1751153450486,-500.0,0.00029652,2]
[368381174,1751153450495,-500.0,0.00029652,2]
[368381175,1751153450504,-500.0,0.00029652,2]
[368381176,1751153450515,-500.0,0.00029652,2]
[368381177,1751153450524,-565.0,0.00029652,2]
[368381178,1751153450533,-500.0,0.00029652,2]
[368381179,1751153450542,-500.0,0.00029652,2]
[368381180,1751153450551,-500.0,0.00029652,2]
[368381181,1751153450560,-500.0,0.00029652,2]
[368381182,1751153450569,-500.0,0.00029652,2]
[368381183,1751153450580,-500.0,0.00029652,2]
[368381184,1751153450590,-500.0,0.00029652,2]
[368381185,1751153450600,-500.0,0.00029652,2]
[368381186,1751153450610,-500.0,0.00029652,2]
[368381187,1751153450619,-500.0,0.00029652,2]
[368381188,1751153450628,-500.0,0.00029652,2]
[368381189,1751153450637,-500.0,0.00029652,2]
[368381190,1751153450646,-500.0,0.00029652,2]
[368381191,1751153450655,-500.0,0.00029652,2]
[368381192,1751153450665,-500.0,0.00029652,2]
[368381193,1751153450676,-500.0,0.00029652,2]
[368381194,1751153450686,-500.0,0.00029652,2]
[368381195,1751153450696,-500.0,0.00029652,2]
[368381196,1751153450705,-500.0,0.00029652,2]
[368381197,1751153450714,-500.0,0.00029652,2]
[368381198,1751153450723,-500.0,0.00029652,2]
[368381199,1751153450732,-500.0,0.00029652,2]
[368381200,1751153450741,-500.0,0.00029652,2]
[368381201,1751153450751,-500.0,0.00029652,2]
[368381202,1751153450760,-500.0,0.00029652,2]
[368381203,1751153450769,-500.0,0.00029652,2]
[368381204,1751153450779,-500.0,0.00029652,2]
[368381205,1751153450788,-500.0,0.00029652,2]
[368381206,1751153450797,-500.0,0.00029652,2]
[368381207,1751153450807,-500.0,0.00029652,2]
[368381208,1751153450816,-500.0,0.00029652,2]
[368381209,1751153450826,-500.0,0.00029652,2]
[368381210,1751153450835,-500.0,0.00029652,2]
[368381211,1751153450844,-500.0,0.00029652,2]
[368381212,1751153450854,-500.0,0.00029652,2]
[368381213,1751153451088,-500.0,0.00029652,2]
[368381214,1751153451127,-500.0,0.00029652,2]
[368381215,1751153451136,-500.0,0.00029652,2]
[368381216,1751153451146,-500.0,0.00029652,2]
[368381217,1751153451155,-500.0,0.00029652,2]
[368381218,1751153451164,-500.0,0.00029652,2]
[368381219,1751153451173,-500.0,0.00029652,2]
[368381220,1751153451182,-500.0,0.00029652,2]
[368381221,1751153451192,-500.0,0.00029652,2]
[368381222,1751153451206,-500.0,0.00029652,2]
[368381223,1751153451216,-500.0,0.00029652,2]
[368381224,1751153451225,-500.0,0.00029652,2]
[368381225,1751153451235,-500.0,0.00029652,2]
[368381226,1751153451245,-500.0,0.00029652,2]
[368381227,1751153451255,-500.0,0.00029652,2]
[368381228,1751153451264,-500.0,0.00029652,2]
[368381229,1751153451274,-500.0,0.00029652,2]
[368381230,1751153451284,-500.0,0.00029652,2]
[368381231,1751153451293,-500.0,0.00029652,2]
[368381232,1751153451302,-500.0,0.00029652,2]
[368381233,1751153451312,-500.0,0.00029652,2]
[368381234,1751153451321,-500.0,0.00029652,2]
[368381235,1751153451331,-500.0,0.00029652,2]
[368381236,1751153451341,-500.0,0.00029652,2]
[368381237,1751153451351,-500.0,0.00029652,2]
[368381238,1751153451360,-500.0,0.00029652,2]
[368381239,1751153451370,-500.0,0.00029652,2]
[368381240,1751153451379,-500.0,0.00029652,2]
[368381241,1751153451389,-500.0,0.00029652,2]
[368381242,1751153451398,-500.0,0.00029652,2]
[368381243,1751153451407,-500.0,0.00029652,2]
[368381244,1751153451417,-500.0,0.00029652,2]
[368381245,1751153451426,-500.0,0.00029652,2]
[368381246,1751153451436,-500.0,0.00029652,2]
[368381247,1751153451445,-500.0,0.00029652,2]
[368381248,1751153451454,-500.0,0.00029652,2]
[368381249,1751153451464,-500.0,0.00029652,2]
[368381250,1751153451473,-500.0,0.00029652,2]
[368381251,1751153451482,-500.0,0.00029652,2]
[368381252,1751153451492,-500.0,0.00029652,2]
[368381253,1751153451501,-500.0,0.00029652,2]
[368381254,1751153451510,-500.0,0.00029652,2]
[368381255,1751153451520,-500.0,0.00029652,2]
[368381256,1751153451529,-500.0,0.00029652,2]
[368381257,1751153451539,-500.0,0.00029652,2]
[368381258,1751153451548,-500.0,0.00029652,2]
[368381259,1751153451558,-500.0,0.00029652,2]
[368381260,1751153451567,-500.0,0.00029652,2]
[368381261,1751153451576,-500.0,0.00029652,2]
[368381262,1751153451585,-500.0,0.00029652,2]
[368381263,1751153451595,-500.0,0.00029652,2]
[368381264,1751153451604,-500.0,0.00029652,2]
[368381265,1751153451613,-500.0,0.00029652,2]
[368381266,1751153451622,-500.0,0.00029652,2]
[368381267,1751153451631,-500.0,0.00029652,2]
[368381268,1751153451641,-500.0,0.00029652,2]
[368381269,1751153451651,-500.0,0.00029652,2]
[368381270,1751153451660,-500.0,0.00029652,2]
[368381271,1751153451669,-500.0,0.00029652,2]
[368381272,1751153451679,-500.0,0.00029652,2]
[368381273,1751153451687,-500.0,0.00029652,2]
[368381274,1751153451696,-500.0,0.00029652,2]
[368381275,1751153451706,-500.0,0.00029652,2]
[368381276,1751153451715,-500.0,0.00029652,2]
[368381277,1751153451724,-500.0,0.00029652,2]
[368381278,1751153451734,-500.0,0.00029652,2]
[368381279,1751153451743,-500.0,0.00029652,2]
[368381280,1751153451752,-500.0,0.00029652,2]
[368381281,1751153451761,-500.0,0.00029652,2]
[368381282,1751153451771,-500.0,0.00029652,2]
[368381283,1751153451781,-500.0,0.00029652,2]
[368381284,1751153451790,-500.0,0.00029652,2]
[368381285,1751153451799,-500.0,0.00029652,2]
[368381286,1751153451809,-500.0,0.00029652,2]
[368381287,1751153451818,-500.0,0.00029652,2]
[368381288,1751153451828,-500.0,0.00029652,2]
[368381289,1751153451837,-500.0,0.00029652,2]
[368381290,1751153451848,-500.0,0.00029652,2]
[368381291,1751153451858,-500.0,0.00029652,2]
[368381292,1751153451867,-500.0,0.00029652,2]
[368381293,1751153451877,-500.0,0.00029652,2]
[368381294,1751153451886,-500.0,0.00029652,2]
[368381295,1751153451895,-500.0,0.00029652,2]
[368381296,1751153451905,-500.0,0.00029652,2]
[368381297,1751153451914,-500.0,0.00029652,2]
[368381298,1751153451924,-500.0,0.00029652,2]
[368381299,1751153451933,-500.0,0.00029652,2]
[368381300,1751153451943,-500.0,0.00029652,2]
[368381301,1751153451952,-500.0,0.00029652,2]
[368381302,1751153451961,-500.0,0.00029652,2]
[368381303,1751153451971,-500.0,0.00029652,2]
[368381304,1751153451981,-500.0,0.00029652,2]
[368381305,1751153451990,-500.0,0.00029652,2]
[368381306,1751153451999,-500.0,0.00029652,2]
[368381307,1751153452009,-500.0,0.00029652,2]
[368381308,1751153452018,-500.0,0.00029652,2]
[368381309,1751153452027,-500.0,0.00029652,2]
[368381310,1751153452036,-500.0,0.00029652,2]
[368381311,1751153452046,-500.0,0.00029652,2]
[368381312,1751153452055,-500.0,0.00029652,2]
[368381313,1751153452064,-500.0,0.00029652,2]
[368381314,1751153452074,-500.0,0.00029652,2]
[368381315,1751153452083,-500.0,0.00029652,2]
[368381316,1751153452092,-500.0,0.00029652,2]
[368381317,1751153452102,-500.0,0.00029652,2]
[368381318,1751153452111,-500.0,0.00029652,2]
[368381319,1751153452120,-500.0,0.00029652,2]
[368381320,1751153452130,-500.0,0.00029652,2]
[368381321,1751153452139,-500.0,0.00029652,2]
[368381322,1751153452149,-500.0,0.00029652,2]
[368381323,1751153452158,-500.0,0.00029652,2]
[368381324,1751153452167,-500.0,0.00029652,2]
[368381325,1751153452178,-500.0,0.00029652,2]
[368381326,1751153452188,-500.0,0.00029652,2]
[368381327,1751153452198,-500.0,0.00029652,2]
[368381328,1751153452207,-500.0,0.00029652,2]
[368381329,1751153452217,-500.0,0.00029652,2]
[368381330,1751153452227,-150.0,0.00029652,2]
[368381331,1751153452237,-3419.28,0.0002967,2]
[368381332,1751153452246,-388.3,0.0002967,2]
[368381333,1751153452256,-734.69718128,0.0002967,2]
[368381334,1751153452265,-1000.0,0.0002967,2]
[368381335,1751153452275,-1000.0,0.0002967,2]
[368381336,1751153452284,-1000.0,0.0002967,2]
[368381337,1751153452294,-151.575,0.00029671,2]
[368381338,1751153452304,-150.855,0.00029671,2]
[368381339,1751153452314,-150.0,0.00029671,2]
[368381340,1751153452323,-286.205,0.00029671,2]
[368381341,1751153452333,-150.559,0.00029671,2]
[368381342,1751153452344,-151.434,0.00029671,2]
[368381343,1751153452354,-208.357,0.00029671,2]
[368381344,1751153452363,-297.02892017,0.00029673,5]
[368381345,1751153452373,-183.70226451,0.00029673,5]
[368381346,1751153452382,-196.44768826,0.00029673,5]
[368381347,1751153452393,-305.45769838,0.00029673,5]
[368381348,1751153452404,-510.22004824,0.00029673,5]
[368381349,1751153452414,-500.0,0.00029673,5]
[368381350,1751153452423,-500.0,0.00029673,5]
[368381351,1751153452433,-500.0,0.00029673,5]
[368381352,1751153452443,-372.17546797,0.00029673,5]
[368381353,1751153452452,-500.0,0.00029673,5]
[368381354,1751153452462,-500.0,0.00029673,5]
[368381355,1751153452471,-500.0,0.00029673,5]
[368381356,1751153452481,-500.0,0.00029673,5]
[368381357,1751153452490,-500.0,0.00029673,5]
[368381358,1751153452499,-160.30859647,0.00029673,5]
[368381359,1751153452509,-500.0,0.00029673,5]
[368381360,1751153452519,-323.7891085,0.00029673,5]
[368381361,1751153452528,-184.92238777,0.00029681,2]
[368381362,1751153452538,-358675.50994237,0.00029681,7]
[368381363,1751153452547,-150.0,0.00029681,2]
[368381364,1751153452558,-8045.36651129,0.00029681,2]
[368381365,1751153452567,-150.0,0.00029681,2]
[368381366,1751153452577,-575.10127199,0.00029681,2]
[368381367,1751153452587,-150.0,0.00029681,2]
[368381368,1751153452596,-3096.337961,0.00029681,2]
[368381369,1751153452605,-8337.31532375,0.00029684,2]
[368381370,1751153452615,-2639.3896,0.000297,2]
[368381371,1751153452625,-1100.0,0.000297,10]
[368381372,1751153452634,-1734.2596,0.000297,2]
[368381373,1751153452643,-200.0,0.000297,2]
[368381374,1751153452653,-151.76208581,0.0002971,2]
[368381375,1751153452663,-200.0,0.00029719,2]
[368381376,1751153452672,-153.0,0.00029752,2]
[368381377,1751153452682,-153.0,0.00029752,2]
[368381378,1751153452691,-153.0,0.00029752,2]
[368381379,1751153452700,-153.0,0.00029752,2]
[368381380,1751153452709,-153.0,0.00029752,2]
[368381381,1751153452718,-153.0,0.00029752,2]
[368381382,1751153452728,-153.0,0.00029752,2]
[368381383,1751153452737,-153.0,0.00029752,2]
[368381384,1751153452746,-269.43161067,0.00029757,15]
[368381385,1751153452755,-500.0,0.00029758,120]
[368381386,1751153452764,-503.580768,0.00029758,120]
[368381387,1751153452774,-500.0,0.00029758,120]
[368381388,1751153452784,-168.0,0.00029764,2]
[368381389,1751153452794,-1000.0,0.0002977,2]
[368381390,1751153452803,-1000.0,0.0002977,2]
[368381391,1751153452812,-1000.0,0.0002977,2]
[368381392,1751153452821,-500.0,0.0002977,2]
[368381393,1751153452831,-500.0,0.0002977,2]
[368381394,1751153452842,-500.0,0.0002977,2]
[368381395,1751153452852,-231.0,0.00029776,7]
[368381396,1751153452862,-168.0,0.00029781,2]
[368381397,1751153452872,-153.0,0.00029785,2]
[368381398,1751153452882,-153.0,0.00029785,2]
[368381399,1751153452891,-153.0,0.00029785,2]
[368381400,1751153452899,-6504.03266386,0.00029789,2]
[368381401,1751153452909,-66715.56373731,0.000298,7]
[368381402,1751153453773,-21853.4878,0.000298,7]
[368381403,1751153453784,-13438.49075,0.000298,7]
[368381404,1751153453801,-449.5557128,0.000298,7]
[368381405,1751153453813,-408.30563646,0.000298,7]
[368381406,1751153453832,-7546.50322358,0.000298,7]
[368381407,1751153453842,-1000.0,0.000298,2]
[368381408,1751153453852,-1400.0,0.000298,10]
[368381409,1751153453863,-8337.31532375,0.0002981,2]
[368381410,1751153453872,-63424.2029,0.0002982,3]
[368381411,1751153453881,-835.41973025,0.0002982,3]
[368381412,1751153453891,-357.08944026,0.00029851,2]
[368381413,1751153453900,-187.66708368,0.00029865,2]
[368381414,1751153453909,-1000.0,0.0002987,2]
[368381415,1751153453918,-1000.0,0.0002987,2]
[368381416,1751153453927,-500.0,0.0002987,2]
[368381417,1751153453937,-500.0,0.0002987,2]
[368381418,1751153453946,-150.0,0.00029886,2]
[368381419,1751153453955,-150.0,0.00029886,2]
[368381420,1751153453964,-150.0,0.00029886,2]
[368381421,1751153453973,-500.0,0.00029886,2]
[368381422,1751153453983,-516.0,0.00029886,2]
[368381423,1751153453991,-150.0,0.00029886,2]
[368381424,1751153454001,-500.0,0.00029886,2]
[368381425,1751153454010,-500.0,0.00029886,2]
[368381426,1751153454019,-500.0,0.00029886,2]
[368381427,1751153454028,-150.0,0.00029886,2]
[368381428,1751153454037,-500.0,0.00029886,2]
[368381429,1751153454046,-500.0,0.00029886,2]
[368381430,1751153454055,-150.0,0.00029886,2]
[368381431,1751153454064,-150.0,0.00029886,2]
[368381432,1751153454073,-150.0,0.00029886,2]
[368381433,1751153454082,-500.0,0.00029886,2]
[368381434,1751153454091,-150.0,0.00029886,2]
[368381435,1751153454100,-500.0,0.00029886,2]
[368381436,1751153454109,-150.0,0.00029886,2]
[368381437,1751153454119,-150.0,0.00029886,2]
[368381438,1751153454129,-500.0,0.00029886,2]
[368381439,1751153454138,-151.76208581,0.00029888,2]
[368381440,1751153454148,-168.0,0.00029893,2]
[368381441,1751153454157,-331.44,0.00029898,120]
[368381442,1751153454166,-200.0,0.000299,10]
[368381443,1751153454175,-30462.10526312,0.0002992,2]
[368381444,1751153454184,-500.0,0.00029926,2]
[368381445,1751153454193,-566.50771596,0.00029933,2]
[368381446,1751153454202,-8337.31532375,0.00029935,2]
[368381447,1751153454214,-1000.0,0.0002997,2]
[368381448,1751153454222,-500.0,0.0002997,2]
[368381449,1751153454232,-439.0,0.00029973,2]
[368381450,1751153454241,-15474.27662431,0.00029973,2]
[368381451,1751153454253,-11864.89246098,0.00029973,2]
[368381452,1751153522728,300.0,0.00027355,120]
[368381453,1751153965997,190.00630344,0.00017099,2]
[368381454,1751154025993,151.0,0.00027397,120]
[368381455,1751154053071,187.33,0.00016712,2]
[368381456,1751154054773,162.5,0.00027397,120]
[368381457,1751154099727,520.8708716,0.00027397,120]
[368381461,1751154451507,159.42,0.00013699,2]
[368381462,1751154470077,265.0,0.00027087,120]
[368381463,1751154520320,191.4480434,0.0002739,120]
[368381470,1751154632183,-250.0,0.0001995,2]
[368381471,1751154632192,-378.91018776,0.0002,2]
[368381472,1751154632202,-151.0,0.0002,2]
[368381473,1751154632211,-159.42,0.00020187,2]
[368381474,1751154632221,-156.587,0.00020548,2]
[368381475,1751154632230,-162.380719,0.00021096,2]
[368381476,1751154632239,-250.0,0.0002189,2]
[368381477,1751154632249,-250.0,0.0002189,2]
[368381478,1751154632258,-167.99,0.00022132,2]
[368381479,1751154632267,-159.42,0.00026676,2]
[368381480,1751154632277,-295.33280037,0.00027087,2]
[368381481,1751154632290,-1204.66719963,0.00027087,2]
[368381482,1751154632300,-1200.0,0.00027199,2]
[368381483,1751154632312,-352.18,0.000272,2]
[368381484,1751154632323,-472.96,0.00027208,2]
[368381485,1751154632334,-1000.0,0.00027258,2]
[368381486,1751154632344,-200.0,0.00027283,2]
[368381487,1751154632355,-184.86033401,0.00027299,2]
[368381488,1751154632405,-5.13966599,0.00027299,2]
[368381489,1751154632415,-300.0,0.00027408,2]
[368381490,1751154632425,-133.07930374,0.00027409,2]
[368381491,1751154632438,-166.92069626,0.00027409,2]
[368381492,1751154632449,-190.0,0.0002741,2]
[368381493,1751154632459,-422.75087605,0.00027424,2]
[368381494,1751154632471,-419.34440664,0.00027424,2]
[368381495,1751154632487,-774.82471731,0.00027424,2]
[368381496,1751154632496,-190.0,0.00027517,2]
[368381497,1751154632505,-162.58,0.00027538,2]
[368381498,1751154632515,-666.0,0.00027551,2]
[368381499,1751154632524,-215.0,0.0002775,2]
[368381500,1751154632534,-208.0,0.0002775,2]
[368381501,1751154632544,-1200.0,0.00027763,2]
[368381502,1751154632553,-2195.72,0.00027764,2]
[368381503,1751154632563,-300.0,0.00027813,2]
[368381505,1751154632573,-300.0,0.00027813,120]
[368381507,1751154632582,-1189.95,0.00027868,2]
[368381509,1751154632592,-207.4,0.00027915,2]
[368381511,1751154632601,-835.41973025,0.000281,2]
[368381513,1751154632611,-170.63,0.00028121,2]
[368381515,1751154632620,-151.0,0.00028299,2]
[368381517,1751154632630,-500.0,0.00028299,2]
[368381519,1751154632640,-500.0,0.00028299,2]
[368381521,1751154632649,-500.0,0.00028299,2]
[368381523,1751154632659,-500.0,0.00028299,2]
[368381524,1751154632669,-500.0,0.00028299,2]
[368381526,1751154632678,-500.0,0.00028299,2]
[368381528,1751154632688,-500.0,0.00028299,2]
[368381529,1751154632697,-500.0,0.00028299,2]
[368381531,1751154632706,-183.48646584,0.00028299,2]
[368381534,1751154632724,-316.51353416,0.00028299,2]
[368381536,1751154632733,-500.0,0.00028299,2]
[368381538,1751154632743,-500.0,0.00028299,2]
[368381540,1751154632752,-500.0,0.00028299,2]
[368381542,1751154632761,-500.0,0.00028299,2]
[368381544,1751154632771,-500.0,0.00028299,2]
[368381546,1751154632780,-500.0,0.00028299,2]
[368381548,1751154632789,-3950.18,0.00028316,2]
[368381549,1751154632798,-250.0,0.00028406,2]
[368381551,1751154632807,-150.0,0.00028462,2]
[368381553,1751154632816,-794.34,0.00028548,2]
[368381555,1751154632826,-359.0,0.00028554,2]
[368381557,1751154632835,-165.64,0.0002857,2]
[368381559,1751154632845,-4238.06,0.00028667,2]
[368381561,1751154632854,-2000.0,0.000288,2]
[368381563,1751154632864,-424.9307,0.000288,2]
[368381565,1751154632873,-1000.0,0.000288,2]
[368381567,1751154632882,-2500.0,0.000288,2]
[368381569,1751154632891,-36198.9323,0.00028833,2]
[368381571,1751154632901,-1000.0,0.00028833,2]
[368381573,1751154632910,-1439.55952199,0.00028889,2]
[368381575,1751154632919,-584.63705981,0.00028889,17]
[368381577,1751154632928,-197.12921998,0.00028889,2]
[368381579,1751154632937,-1167.33324345,0.00028899,15]
[368381581,1751154632947,-500.0,0.000289,2]
[368381583,1751154632956,-143276.7154842,0.000289,2]
[368381586,1751154632975,-1890.44816829,0.000289,2]
[368381588,1751154632986,-7947.29745844,0.000289,2]
[368381590,1751154632996,-9849.55492021,0.000289,2]
[368381831,1751154638199,-8869.39700084,0.000289,2]
[368381910,1751154639123,-16535.26816802,0.000289,2]
[368381912,1751154639132,-3406.15384147,0.00028989,2]
[368381914,1751154639142,-1439.55952197,0.00029047,2]
[368381916,1751154639151,-334.813117,0.00029073,8]
[368381918,1751154639161,-300.0,0.00029201,2]
[368381920,1751154639172,-342.09,0.00029201,2]
[368381922,1751154639182,-300.62,0.00029201,2]
[368381924,1751154639191,-300.0,0.00029201,2]
[368381926,1751154639200,-327.46,0.00029201,2]
[368381928,1751154639210,-456.13,0.00029201,2]
[368381930,1751154639220,-456.13,0.00029201,2]
[368381932,1751154639229,-455.79,0.00029201,2]
[368381934,1751154639238,-1439.55952197,0.00029205,2]
[368381936,1751154639248,-215.0738,0.00029284,2]
[368381938,1751154639256,-1439.55952197,0.00029363,2]
[368381940,1751154639266,-190.0,0.00029449,2]
[368381942,1751154639274,-1028.015,0.00029519,23]
[368381944,1751154639283,-1439.55952197,0.00029521,2]
[368381946,1751154639292,-1680.0,0.00029528,2]
[368381947,1751154639301,-495.15792751,0.00029559,2]
[368381950,1751154639310,-200.0,0.00029565,2]
[368381952,1751154639320,-467.64085433,0.00029589,2]
[368381954,1751154639331,-423.74673554,0.00029589,2]
[368382059,1751154640401,-275.71241013,0.00029589,2]
[368382061,1751154640411,-6.28758987,0.00029606,2]
[368382063,1751154640424,-329.5613,0.00029606,2]
[368382069,1751154640471,-36.27111013,0.00029606,2]
[368382071,1751154640481,-266.88160711,0.00029636,2]
[368382078,1751154640546,-2000.0,0.00029636,2]
[368382080,1751154640558,-1072.11839289,0.00029636,2]
[368382082,1751154640568,-948.0,0.00029636,2]
[368382084,1751154640578,-2007.0,0.00029636,2]
[368382086,1751154640588,-804.0,0.00029636,2]
[368382088,1751154640597,-639.0,0.00029636,2]